lending/lending_fUSD_20240809
["ID","MTS","AMOUNT","RATE_DAILY","PERIOD"]
[334569274,1723240316216,-150.0,0.00028081,120]
[334569275,1723240316247,-150.0,0.00028143,120]
[334569276,1723240316270,-150.0,0.00028187,120]
[334569277,1723240316294,-584.71,0.00028287,120]
[334569278,1723240316317,-150.0,0.00028335,120]
[334569279,1723240316341,-150.0,0.00028444,120]
[334569280,1723240316364,-150.0,0.00028458,120]
[334569281,1723240316388,-150.0,0.00028498,120]
[334569282,1723240316412,-150.0,0.00028523,120]
[334569283,1723240316436,-150.0,0.00028587,120]
[334569284,1723240316460,-150.0,0.00028613,120]
[334569285,1723240316485,-150.0,0.00028681,120]
[334569286,1723240316509,-150.0,0.00028757,120]
[334569287,1723240316534,-150.0,0.00028831,120]
[334569288,1723240316558,-150.0,0.00028942,120]
[334569289,1723240316582,-994.59,0.00029,120]
[334569290,1723240316604,-209.62882145,0.00029,120]
[334569291,1723240316629,-150.0,0.00029019,120]
[334569292,1723240316652,-150.0,0.00029023,120]
[334569293,1723240316673,-150.0,0.00029072,120]
[334569294,1723240316695,-584.71,0.00029109,120]
[334569295,1723240316719,-150.0,0.00029249,120]
[334569296,1723240316745,-150.0,0.00029303,120]
[334569297,1723240316769,-150.0,0.0002936,120]
[334569298,1723240316793,-150.0,0.00029499,120]
[334569299,1723240316817,-150.0,0.00029523,120]
[334569300,1723240316841,-150.0,0.00029565,120]
[334569301,1723240316864,-150.0,0.00029715,120]
[334569302,1723240316889,-150.0,0.00029809,120]
[334569303,1723240316913,-150.0,0.00029849,120]
[334569304,1723240316936,-584.71,0.00029931,120]
[334569305,1723240316961,-150.0,0.00029988,120]
[334569306,1723240317115,-2883.8783218,0.0003,120]
[334569307,1723240317138,-1100.0,0.0003,120]
[334569308,1723240317161,-151.0,0.0003,120]
[334569309,1723240317185,-151.0,0.0003,120]
[334569310,1723240317209,-500.0,0.0003,120]
[334569311,1723240317232,-508.0,0.0003,120]
[334569312,1723240317259,-150.0,0.00030134,120]
[334569313,1723240317282,-150.0,0.0003025,120]
[334569314,1723240317306,-150.0,0.0003028,120]
[334569315,1723240317329,-150.0,0.00030372,120]
[334569316,1723240317353,-150.0,0.00030448,120]
[334569317,1723240317377,-150.0,0.00030531,120]
[334569318,1723240317402,-150.0,0.00030544,120]
[334569319,1723240317427,-150.0,0.0003065,120]
[334569320,1723240317451,-150.0,0.00030658,120]
[334569321,1723240317475,-150.0,0.00030691,120]
[334569322,1723240317499,-150.0,0.00030719,120]
[334569323,1723240317523,-584.71,0.00030753,120]
[334569324,1723240317549,-150.0,0.00030897,120]
[334569325,1723240317572,-150.0,0.00030899,120]
[334569326,1723240317597,-150.0,0.00030938,120]
[334569327,1723240317620,-151.0,0.00030959,120]
[334569328,1723240317644,-150.0,0.00030996,120]
[334569329,1723240317667,-150.0,0.00031098,120]
[334569330,1723240317691,-150.0,0.00031369,120]
[334569331,1723240317716,-151.0,0.00031397,120]
[334569332,1723240317740,-388.85701786,0.00031438,120]
[334569333,1723240317763,-388.85701785,0.00031438,120]
[334569334,1723240317786,-150.0,0.00031473,120]
[334569335,1723240317810,-150.0,0.00031513,120]
[334569336,1723240317833,-584.71,0.00031575,120]
[334569337,1723240317856,-150.0,0.00031597,120]
[334569338,1723240317880,-150.0,0.00031621,120]
[334569339,1723240317903,-150.0,0.00031624,120]
[334569340,1723240317926,-150.0,0.00031719,120]
[334569341,1723240317949,-150.0,0.00031749,120]
[334569342,1723240317974,-150.0,0.0003178,120]
[334569343,1723240318024,-151.0,0.00031918,120]
[334569344,1723240318048,-150.0,0.00031933,120]
[334569345,1723240318072,-150.0,0.00031984,120]
[334569346,1723240318101,-500.0,0.00032,120]
[334569347,1723240318136,-150.0,0.00032059,120]
[334569348,1723240318167,-150.0,0.00032064,120]
[334569349,1723240318200,-150.0,0.00032073,120]
[334569350,1723240318235,-150.0,0.00032097,120]
[334569351,1723240318266,-150.0,0.00032278,120]
[334569352,1723240318300,-150.0,0.0003234,120]
[334569353,1723240318330,-584.71,0.00032396,120]
[334569354,1723240318361,-150.0,0.00032417,120]
[334569355,1723240318394,-150.0,0.00032434,120]
[334569356,1723240318429,-150.0,0.00032574,120]
[334569357,1723240318457,-150.0,0.00032721,120]
[334569358,1723240318488,-150.0,0.00032723,120]
[334569359,1723240318521,-150.0,0.0003273,120]
[334569360,1723240318555,-151.0,0.00032795,120]
[334569361,1723240318586,-150.0,0.00032823,120]
[334569362,1723240318617,-150.0,0.00032825,120]
[334569363,1723240318649,-150.0,0.00032849,120]
[334569364,1723240318678,-1109.1,0.00032876,120]
[334569365,1723240318707,-1109.1,0.00032876,120]
[334569366,1723240318736,-1109.1,0.00032876,120]
[334569367,1723240318766,-1109.1,0.00032876,120]
[334569368,1723240318795,-1109.1,0.00032876,120]
[334569369,1723240318824,-1109.1,0.00032876,120]
[334569370,1723240318853,-1109.1,0.00032876,120]
[334569371,1723240318881,-1109.1,0.00032876,120]
[334569372,1723240318909,-1109.1,0.00032876,120]
[334569373,1723240318937,-1109.1,0.00032876,120]
[334569374,1723240318966,-1109.1,0.00032876,120]
[334569375,1723240318994,-1109.1,0.00032876,120]
[334569376,1723240319022,-1109.1,0.00032876,120]
[334569377,1723240319049,-1109.1,0.00032876,120]
[334569378,1723240319077,-1109.1,0.00032876,120]
[334569379,1723240319105,-1109.1,0.00032876,120]
[334569380,1723240319133,-1109.1,0.00032876,120]
[334569381,1723240319162,-1109.1,0.00032876,120]
[334569382,1723240319194,-1109.1,0.00032876,120]
[334569383,1723240319226,-1109.1,0.00032876,120]
[334569384,1723240319260,-1109.1,0.00032876,120]
[334569385,1723240319287,-1109.1,0.00032876,120]
[334569386,1723240319311,-1109.1,0.00032876,120]
[334569387,1723240319336,-1109.11564911,0.00032876,120]
[334569388,1723240319550,-151.0,0.00032877,120]
[334569389,1723240319585,-150.0,0.00032967,120]
[334569390,1723240319608,-150.0,0.00032975,120]
[334569391,1723240319633,-160.78512653,0.00033,120]
[334569392,1723240319656,-1100.0,0.00033,120]
[334569393,1723240319678,-91484.0,0.00033,120]
[334569394,1723240319701,-150.0,0.0003313,120]
[334569395,1723240319724,-1033.2,0.00033151,120]
[334569396,1723240319748,-1775.95,0.00033151,120]
[334569397,1723240319771,-388.85701786,0.00033182,120]
[334569398,1723240319793,-584.71,0.00033218,120]
[334569399,1723240319817,-150.0,0.00033243,120]
[334569400,1723240319839,-150.0,0.00033288,120]
[334569401,1723240319862,-150.0,0.00033311,120]
[334569402,1723240319885,-150.0,0.00033325,120]
[334569403,1723240319908,-150.0,0.00033393,120]
[334569404,1723240319931,-150.0,0.00033396,120]
[334569405,1723240319954,-150.0,0.00033465,120]
[334569406,1723240319977,-150.0,0.00033477,120]
[334569407,1723240320002,-150.0,0.00033566,120]
[334569408,1723240320027,-150.0,0.00033575,120]
[334569409,1723240320051,-151.0,0.00033836,120]
[334569410,1723240320075,-1100.00000001,0.00034,120]
[334569411,1723240320098,-500.0,0.00034,120]
[334569412,1723240320123,-584.71,0.0003404,120]
[334569413,1723240320146,-151.0,0.00034192,120]
[334569414,1723240320172,-151.0,0.00034795,120]
[334569415,1723240320196,-584.71,0.00034862,120]
[334569416,1723240320221,-388.85701786,0.00034927,120]
[334569417,1723240320247,-801.00123734,0.00035,120]
[334569418,1723240320271,-380.40838372,0.00035,120]
[334569419,1723240320295,-749208.9222323,0.00035,120]
[334569420,1723240320319,-43500.0,0.000355,120]
[334569421,1723240320343,-151.0,0.00035589,120]
[334569422,1723240320367,-584.71,0.00035684,120]
[334569423,1723240320391,-151.0,0.00035753,120]
[334569424,1723240320415,-455.72453181,0.00035915,120]
[334569425,1723240320438,-423.59496864,0.00036,120]
[334569426,1723240320463,-2000.0,0.00036,120]
[334569427,1723240320485,-1336.46071807,0.00036,120]
[334569428,1723240320510,-584.71,0.00036506,120]
[334569429,1723240320535,-388.85701786,0.00036671,120]
[334569430,1723240320559,-151.0,0.00036712,120]
[334569431,1723240320583,-151.0,0.00036986,120]
[334569432,1723240320607,-584.71,0.00037328,120]
[334569433,1723240320631,-151.0,0.00037671,120]
[334569434,1723240320654,-455.72453181,0.00037909,120]
[334569435,1723240320677,-247.72855247,0.00037999,120]
[334569436,1723240320701,-1100.0,0.00038,120]
[334569437,1723240320723,-755.65731966,0.00038,120]
[334569438,1723240320748,-250.0,0.00038,120]
[334569439,1723240320772,-2000.0,0.00038,120]
[334569440,1723240320794,-1015.07337779,0.00038,120]
[334569441,1723240320818,-1074.5580844,0.00038,120]
[334569442,1723240320841,-584.71,0.0003815,120]
[334569443,1723240320865,-151.0,0.00038384,120]
[334569444,1723240320888,-1231.3233723,0.000385,120]
[334569445,1723240320910,-30000.0,0.000385,120]
[334569446,1723240320934,-151.0,0.0003863,120]
[334569447,1723240320958,-162.35,0.0003881,120]
[334569448,1723240320982,-584.71,0.00038972,120]
[334569449,1723240321006,-1109.0,0.00039,120]
[334569450,1723240321029,-497.37138369,0.00039,120]
[334569451,1723240321056,-500.0,0.00039,120]
[334569452,1723240321079,-2000.0,0.00039,120]
[334569453,1723240321102,-1028.97168,0.00039151,120]
[334569454,1723240321124,-490.81568,0.00039184,120]
[334569455,1723240321146,-253.88019294,0.00039451,120]
[334569456,1723240321168,-1060.51614886,0.00039451,120]
[334569457,1723240321191,-151.0,0.00039589,120]
[334569458,1723240321214,-151.0,0.00039781,120]
[334569459,1723240321238,-584.71,0.00039794,120]
[334569460,1723240321261,-1000.0,0.000398,120]
[334569461,1723240321284,-10544.65978133,0.000399,120]
[334569462,1723240321307,-1166.5927442,0.0003999,120]
[334569463,1723240321331,-1077.18565094,0.0003999,120]
[334569464,1723240321357,-1132.9011303,0.0004,120]
[334569465,1723240321381,-238.41877913,0.0004,120]
[334569466,1723240321406,-237.9856926,0.0004,120]
[334569467,1723240321430,-215.1327461,0.0004,120]
[334569468,1723240321453,-932.08527581,0.0004,120]
[334569469,1723240321475,-681.0,0.0004,120]
[334569470,1723240321499,-250.0,0.0004,120]
[334569471,1723240321521,-200.0,0.0004,120]
[334569472,1723240321545,-416.52926137,0.0004,120]
[334569473,1723240321678,-1544.82783829,0.0004,120]
[334569474,1723240321701,-8713.75577803,0.0004,120]
[334569475,1723240321724,-1167.35602505,0.0004,120]
[334569476,1723240321749,-196.21760631,0.0004,120]
[334569477,1723240321772,-248.03836224,0.0004,120]
[334569478,1723240321794,-2000.0,0.0004,120]
[334569479,1723240321818,-3238803.20658783,0.0004,120]
[334569480,1723240321841,-3475.0,0.0004,120]
[334569481,1723240321864,-315.14,0.0004,120]
[334569482,1723240321886,-493.32143307,0.0004,120]
[334569483,1723240321909,-162.18052964,0.0004,120]
[334569484,1723240321934,-1496.95917458,0.0004,120]
[334569485,1723240321957,-375.57572727,0.0004,120]
[334569486,1723240321981,-5255.72840521,0.0004,120]
[334569487,1723240322006,-1015.07337779,0.0004,120]
[334569488,1723240322028,-1074.5580844,0.0004,120]
[334569489,1723240322051,-343.85,0.0004,120]
[334569490,1723240322073,-837.77,0.0004,120]
[334569491,1723240322096,-3226.07,0.0004,120]
[334569492,1723240322120,-1847.01,0.0004,120]
[334569493,1723240322144,-300.0,0.00040189,120]
[334569494,1723240322167,-1022.85410054,0.000405,120]
[334569495,1723240322190,-151.0,0.00040548,120]
[334569496,1723240322213,-584.71,0.00040616,120]
[334569497,1723240322237,-173.37565941,0.000409,120]
[334569498,1723240322260,-1000.0,0.00040999,120]
[334569499,1723240322283,-419.59675254,0.00041,120]
[334569500,1723240322305,-1394.39021097,0.00041,120]
[334569501,1723240322329,-3419.0,0.00041,120]
[334569502,1723240322353,-3000.0,0.00041,120]
[334569503,1723240322376,-455.59699983,0.00041,120]
[334569504,1723240322400,-11728.48,0.00041,120]
[334569505,1723240322423,-1002.1679695,0.00041,120]
[334569506,1723240322447,-946.85134287,0.00041,120]
[334569507,1723240322472,-573.52456478,0.00041,120]
[334569508,1723240322497,-3445.33920425,0.00041044,120]
[334569509,1723240322520,-2221.6974798,0.00041078,120]
[334569510,1723240322550,-151.0,0.00041178,120]
[334569511,1723240322575,-1012.6,0.000412,120]
[334569512,1723240322600,-584.71,0.00041438,120]
[334569513,1723240322623,-4000.0,0.000415,120]
[334569514,1723240322648,-151.0,0.00041507,120]
[334569515,1723240322674,-6133.64419398,0.00041534,120]
[334569516,1723240322701,-356.59303984,0.000416,120]
[334569517,1723240322728,-1000.0,0.00041999,120]
[334569518,1723240322762,-800.0,0.00042,120]
[334569519,1723240322787,-745.45088284,0.00042,120]
[334569520,1723240322810,-994.28197398,0.00042,120]
[334569521,1723240322834,-5000.0,0.00042,120]
[334569522,1723240322859,-1378.0,0.00042,120]
[334569523,1723240322884,-2000.0,0.00042,120]
[334569524,1723240322908,-2000.23304842,0.00042,120]
[334569525,1723240322932,-1028.0,0.00042,120]
[334569526,1723240322954,-10000.0,0.00042,120]
[334569527,1723240322977,-50000.0,0.00042,120]
[334569528,1723240323002,-680.0,0.00042,120]
[334569529,1723240323028,-1643.55669255,0.00042,120]
[334569530,1723240323053,-584.71,0.0004226,120]
[334569531,1723240323077,-3785.99534337,0.000424,120]
[334569532,1723240323102,-151.0,0.00042466,120]
[334569533,1723240323129,-4000.0,0.000425,120]
[334569534,1723240323153,-39504.40030573,0.000425,120]
[334569535,1723240323177,-151.0,0.00042575,120]
[334569536,1723240323200,-2559.22290159,0.00042798,120]
[334569537,1723240323224,-1074.83808251,0.000429,120]
[334569538,1723240323249,-585.17857429,0.000429,120]
[334569539,1723240323273,-1000.0,0.00042999,120]
[334569540,1723240323297,-155.0,0.00043,120]
[334569541,1723240323321,-600.0,0.00043,120]
[334569542,1723240323344,-1435.90959292,0.00043,120]
[334569543,1723240323368,-166.250767,0.00043,120]
[334569544,1723240323392,-531.70505591,0.00043,120]
[334569545,1723240323416,-14079.29173522,0.00043,120]
[334569546,1723240323439,-1443.0,0.00043,120]
[334569547,1723240323463,-2000.0,0.00043,120]
[334569548,1723240323486,-2019.0,0.00043,120]
[334569549,1723240323510,-50000.0,0.00043,120]
[334569550,1723240323534,-10185.0,0.00043,120]
[334569551,1723240323560,-1303.0,0.00043,120]
[334569552,1723240323585,-4727.41,0.00043,120]
[334569553,1723240323609,-204.73076667,0.00043,120]
[334569554,1723240323636,-1003.74662392,0.00043,120]
[334569555,1723240323660,-1988.86986088,0.00043,120]
[334569556,1723240323684,-2030.14675557,0.00043,120]
[334569557,1723240323708,-2149.11616881,0.00043,120]
[334569558,1723240323732,-185.12,0.00043014,120]
[334569559,1723240323758,-584.71,0.00043081,120]
[334569560,1723240323786,-707.21840639,0.000431,120]
[334569561,1723240323810,-9539.27547805,0.0004318,120]
[334569575,1723241431679,-550.0,0.0001,2]
[334569576,1723241431689,-1211.93355993,0.00010021,2]
[334569577,1723241431698,-391.26,0.0001012,2]
[334569578,1723241431709,-150.0,0.00010998,2]
[334569579,1723241431719,-250.0,0.00011,2]
[334569580,1723241431729,-2612.89,0.00011,2]
[334569581,1723241431738,-247.0,0.00011288,2]
[334569582,1723241431748,-841.70164007,0.00011465,2]
[334569583,1723241431829,-295.4294,0.00011465,2]
[334569584,1723241431875,-2884.27895993,0.00011465,2]
[334569585,1723241431886,-300.0,0.00011495,2]
[334569586,1723241431897,-3545.13,0.00011496,2]
[334569587,1723241431907,-170.17,0.00011592,2]
[334569588,1723241431916,-250.0,0.00011615,2]
[334569589,1723241431926,-499.99,0.00011615,2]
[334569590,1723241431937,-250.0,0.00011678,2]
[334569591,1723241431946,-150.99,0.00011678,2]
[334569592,1723241431956,-150.0,0.00011718,2]
[334569593,1723241431967,-200.04,0.00011842,2]
[334569594,1723241431975,-600.0,0.00012,2]
[334569595,1723241431984,-450.5,0.00012038,2]
[334569596,1723241431994,-193.75,0.00012312,2]
[334569597,1723241432003,-499.99,0.00012324,2]
[334569599,1723241432012,-391.26,0.00012384,2]
[334569601,1723241432022,-150.0,0.00012528,2]
[334569603,1723241432031,-1153.23,0.00012529,2]
[334569604,1723241432040,-1153.23,0.00012529,2]
[334569607,1723241432049,-1153.23,0.00012529,2]
[334569610,1723241432059,-167.25085883,0.00012537,2]
[334569612,1723241432072,-41789.81361664,0.0001254,2]
[334569637,1723241437822,-1498.603841,0.0001254,2]
[334569640,1723241437835,-1901.396159,0.0001254,2]
[334569646,1723241437948,-7604.45990915,0.0001254,2]
[334569647,1723241437961,-320.85635304,0.0001254,2]
[334569648,1723241437973,-1954.87549614,0.0001254,2]
[334569649,1723241437986,-1106.44534,0.0001254,2]
[334569650,1723241438001,-10510.61877689,0.0001254,2]
[334569683,1723241442823,-225.25,0.00012255,2]
[334569684,1723241442833,-1118.63,0.00012529,2]
[334569685,1723241442843,-1118.63,0.00012529,2]
[334569686,1723241442856,-1118.63,0.00012529,2]
[334569688,1723241442866,-1118.63,0.00012529,2]
[334569690,1723241442875,-1118.63,0.00012529,2]
[334569692,1723241442887,-1118.63,0.00012529,2]
[334569694,1723241442896,-500.0,0.00012539,2]
[334569696,1723241442906,-500.0,0.00012539,2]
[334569698,1723241442915,-500.0,0.00012539,2]
[334569700,1723241442924,-3858.46214234,0.0001254,2]
[334569707,1723241444028,-694.5375725,0.0001254,2]
[334569708,1723241444039,-3939.92439593,0.0001254,2]
[334569709,1723241444050,-419.13536791,0.0001254,2]
[334569710,1723241444067,-1118.63,0.00012529,2]
[334569711,1723241444077,-245.5899562,0.0001254,2]
[334569712,1723241444090,-1723.80973372,0.0001254,2]
[334569713,1723241444111,-935.898057,0.0001254,2]
[334569714,1723241444123,-260.88,0.0001254,2]
[334569715,1723241444134,-833.87987711,0.0001254,2]
[334569716,1723241444146,-15165.13337386,0.0001254,2]
[334569717,1723241444157,-30455.0446063,0.0001254,2]
[334569718,1723241444172,-1464.06406546,0.0001254,2]
[334569719,1723241444184,-448.95942964,0.0001254,2]
[334569720,1723241444196,-570289.60345125,0.0001254,2]
[334569721,1723241444205,-420.0,0.00012644,2]
[334569722,1723241444215,-2717.24014398,0.00012793,2]
[334569723,1723241444224,-167.10539187,0.00012793,2]
[334569724,1723241444233,-179.99,0.00012893,2]
[334569725,1723241444242,-15416.06779139,0.00013,2]
[334569726,1723241444251,-1000.0,0.00013018,2]
[334569727,1723241444262,-261.49,0.00013022,2]
[334569728,1723241444272,-484.92,0.00013022,2]
[334569729,1723241444283,-261.49,0.00013025,2]
[334569730,1723241444293,-261.49,0.00013029,2]
[334569731,1723241444303,-261.49,0.00013032,2]
[334569732,1723241444315,-261.49,0.00013035,2]
[334569733,1723241444325,-261.49,0.00013039,2]
[334569734,1723241444335,-261.49,0.00013042,2]
[334569735,1723241444348,-261.49,0.00013046,2]
[334569736,1723241444359,-261.49,0.00013049,2]
[334569737,1723241444369,-164.64,0.00013049,2]
[334569738,1723241444380,-261.49,0.00013053,2]
[334569739,1723241444390,-261.49,0.00013056,2]
[334569740,1723241444399,-261.49,0.00013059,2]
[334569741,1723241444410,-261.49,0.00013063,2]
[334569742,1723241444420,-261.49,0.00013066,2]
[334569743,1723241444431,-261.49,0.0001307,2]
[334569744,1723241444440,-261.49,0.00013073,2]
[334569745,1723241444450,-261.49,0.00013076,2]
[334569746,1723241444459,-261.49,0.0001308,2]
[334569747,1723241444469,-261.49,0.00013083,2]
[334569748,1723241444478,-261.49,0.00013087,2]
[334569749,1723241444487,-15879.22524249,0.00013376,2]
[334569750,1723241444497,-48592.91415805,0.00013398,2]
[334569751,1723241444506,-420.22577788,0.00013533,2]
[334569752,1723241444516,-255.0,0.00013618,2]
[334569753,1723241444525,-7000.0,0.0001367,3]
[334569754,1723241444535,-7000.0,0.0001367,3]
[334569755,1723241444545,-5851.02790323,0.00013698,2]
[334569756,1723241444554,-4802.36309509,0.00013698,2]
[334569757,1723241444563,-9901.60610895,0.00013698,2]
[334569758,1723241444573,-7636.87104755,0.00013698,2]
[334569759,1723241444584,-8734.3,0.00013699,2]
[334569760,1723241444593,-500.0,0.00013699,2]
[334569761,1723241444605,-592.14,0.00013699,2]
[334569762,1723241444615,-200.0,0.00013699,2]
[334569763,1723241444624,-21784.33,0.00013699,2]
[334569764,1723241444634,-2751.0,0.00013699,2]
[334569765,1723241444643,-500.0,0.0001372,2]
[334569766,1723241444653,-5914.61222592,0.0001372,2]
[334569767,1723241444663,-5000.0,0.0001372,2]
[334569768,1723241444673,-5000.0,0.0001372,2]
[334569769,1723241444682,-3120.33367931,0.00013799,2]
[334569770,1723241444692,-407.07,0.00013799,2]
[334569771,1723241444701,-228078.819146,0.000138,3]
[334569772,1723241444710,-3031.69345987,0.00013859,2]
[334569773,1723241444720,-2840.45885609,0.00013859,2]
[334569774,1723241444730,-3031.69345987,0.00013859,2]
[334569775,1723241444741,-322.76,0.00013881,2]
[334569776,1723241444751,-1118.4846,0.00013889,2]
[334569777,1723241444761,-30814.4761,0.00013889,2]
[334569778,1723241444771,-155.0,0.00013889,2]
[334569779,1723241444780,-2026.68448,0.00013899,2]
[334569780,1723241444790,-791.10675434,0.000139,2]
[334569781,1723241444799,-150.0,0.000139,2]
[334569782,1723241444809,-150.0,0.000139,2]
[334569783,1723241444818,-167.69849804,0.000139,2]
[334569784,1723241444828,-196.83442498,0.000139,2]
[334569785,1723241444837,-150.0,0.000139,2]
[334569786,1723241444847,-150.0,0.000139,2]
[334569787,1723241444857,-150.0,0.000139,2]
[334569788,1723241444867,-150.0,0.000139,2]
[334569789,1723241444877,-150.0,0.000139,2]
[334569790,1723241444886,-2000.0,0.000139,2]
[334569791,1723241444899,-500.0,0.00013969,2]
[334569792,1723241444909,-500.0,0.00013969,2]
[334569793,1723241444919,-500.0,0.00013969,2]
[334569794,1723241444928,-500.0,0.00013969,2]
[334569795,1723241444938,-164.64,0.00013972,2]
[334569796,1723241444948,-588.66,0.00013973,2]
[334569797,1723241444958,-150.9,0.00013973,2]
[334569798,1723241444969,-153.89,0.00013973,2]
[334569799,1723241444979,-156.84,0.00013973,2]
[334569800,1723241444988,-164.73,0.00013973,2]
[334569801,1723241444998,-500.0,0.00013978,2]
[334569802,1723241445007,-500.0,0.00013978,2]
[334569803,1723241445016,-500.0,0.00013978,2]
[334569804,1723241445028,-500.0,0.00013978,2]
[334569805,1723241445042,-500.0,0.00013978,2]
[334569806,1723241445056,-500.0,0.00013978,2]
[334569807,1723241445070,-500.0,0.00013978,2]
[334569808,1723241445081,-500.0,0.00013978,2]
[334569809,1723241445094,-500.0,0.00013978,2]
[334569810,1723241445106,-500.0,0.00013978,2]
[334569811,1723241445119,-500.0,0.00013978,2]
[334569812,1723241445132,-500.0,0.00013978,2]
[334569813,1723241445147,-2264.29617524,0.00013979,2]
[334569814,1723241445160,-1725.0,0.00013979,2]
[334569815,1723241445173,-2185.93244409,0.00013979,2]
[334569816,1723241445187,-44894.0,0.0001398,2]
[334569817,1723241445200,-2185.93244409,0.00013986,2]
[334569818,1723241445214,-1768.42232553,0.00013986,2]
[334569819,1723241445227,-1500.0,0.00013986,2]
[334569820,1723241445239,-1739.1737808,0.00013986,2]
[334569821,1723241445252,-429.62,0.00013988,2]
[334569822,1723241445265,-500.0,0.00013988,2]
[334569823,1723241445277,-500.0,0.00013988,2]
[334569824,1723241445288,-500.0,0.00013988,2]
[334569825,1723241445299,-2341.29720318,0.00013989,2]
[334569826,1723241445311,-1275.34900939,0.00013989,2]
[334569827,1723241445323,-2062.28384761,0.00013989,2]
[334569828,1723241445336,-2491.2892998,0.00013996,2]
[334569829,1723241445349,-719.82594028,0.00013996,2]
[334569830,1723241445361,-150.0,0.00013998,2]
[334569831,1723241445374,-150.0,0.00013998,2]
[334569832,1723241445387,-1184.7407605,0.00013999,2]
[334569833,1723241445400,-1184.7407605,0.00013999,2]
[334569834,1723241445411,-2386.913232,0.00014,2]
[334569835,1723241445422,-29472.69547545,0.00014,4]
[334569836,1723241445433,-537.3573245,0.00014,2]
[334569837,1723241445444,-266.83857948,0.00014,2]
[334569838,1723241445457,-650.0,0.00014,2]
[334569840,1723241445469,-791.10675434,0.00014012,2]
[334569841,1723241445481,-196.83442498,0.00014012,2]
[334569842,1723241445490,-302.12,0.00014027,2]
[334569843,1723241445503,-530.8,0.00014027,2]
[334569844,1723241445515,-150.0,0.00014118,2]
[334569845,1723241445528,-791.10675434,0.00014124,2]
[334569846,1723241445539,-196.83442498,0.00014124,2]
[334569847,1723241445549,-150.0,0.00014127,2]
[334569848,1723241445560,-2717.24014392,0.00014138,2]
[334569849,1723241445571,-791.10675434,0.00014236,2]
[334569850,1723241445582,-196.83442498,0.00014236,2]
[334569851,1723241445593,-500.0,0.00014283,2]
[334569852,1723241445607,-247.0,0.00014288,2]
[334569853,1723241445620,-150.0,0.00014335,2]
[334569854,1723241445631,-791.10675434,0.00014348,2]
[334569855,1723241445643,-196.83442498,0.00014348,2]
[334569856,1723241445654,-150.0,0.00014353,2]
[334569857,1723241445666,-8734.3,0.00014384,2]
[334569858,1723241445677,-1050.58389028,0.0001443,2]
[334569859,1723241445688,-155.0,0.0001443,2]
[334569860,1723241445699,-705.93019513,0.0001443,2]
[334569861,1723241445712,-685.93276656,0.0001443,2]
[334569862,1723241445724,-705.93019513,0.0001443,2]
[334569863,1723241445735,-689.70297497,0.0001443,2]
[334569864,1723241445746,-600.60859268,0.00014451,2]
[334569865,1723241445759,-476.83882625,0.00014451,2]
[334569866,1723241445772,-179.39133276,0.00014451,2]
[334569867,1723241445784,-791.10675434,0.00014461,2]
[334569869,1723241445796,-196.83442498,0.00014461,2]
[334569871,1723241445807,-150.0,0.00014517,2]
[334569874,1723241445818,-155.0,0.00014519,2]
[334569876,1723241445830,-1002.19997318,0.00014519,2]